fUSD/lending_fUSD_20250911
["ID","MTS","AMOUNT","RATE_DAILY","PERIOD"]
[384910032,1757625069672,-400.0,0.00027397,3]
[384910033,1757625069689,-151.0,0.00027397,7]
[384910034,1757625069705,-151.0,0.00027397,7]
[384910035,1757625069721,-4424.14,0.00027397,7]
[384910036,1757625069736,-151.0,0.00027397,7]
[384910037,1757625069752,-12000.0,0.00027397,7]
[384910038,1757625070028,-151.0,0.00027397,7]
[384910039,1757625070037,-151.0,0.00027397,7]
[384910040,1757625070047,-375.80417593,0.00027397,7]
[384910041,1757625070057,-151.0,0.00027397,7]
[384910042,1757625070066,-12000.0,0.00027397,7]
[384910043,1757625070075,-151.0,0.00027397,7]
[384910044,1757625070083,-151.0,0.00027397,7]
[384910045,1757625070092,-12000.0,0.00027397,7]
[384910046,1757625070102,-400.0,0.00027397,7]
[384910047,1757625070113,-151.0,0.00027397,7]
[384910048,1757625070127,-153.48237,0.00027397,7]
[384910049,1757625070145,-151.0,0.00027397,7]
[384910050,1757625070155,-12000.0,0.00027397,7]
[384910051,1757625070165,-300.118281,0.00027397,7]
[384910052,1757625070175,-12000.0,0.00027397,7]
[384910053,1757625070184,-151.0,0.00027397,7]
[384910054,1757625070194,-12000.0,0.00027397,7]
[384910055,1757625070203,-400.0,0.00027397,7]
[384910056,1757625070212,-151.0,0.00027397,7]
[384910057,1757625070221,-400.0,0.00027397,7]
[384910058,1757625070230,-12000.0,0.00027397,7]
[384910059,1757625070240,-1588.03,0.00027397,7]
[384910060,1757625070249,-235.16643,0.00027397,7]
[384910061,1757625070261,-2607.92,0.00027397,7]
[384910062,1757625070269,-400.0,0.00027397,7]
[384910063,1757625070278,-12000.0,0.00027397,7]
[384910064,1757625070288,-933.44,0.00027397,7]
[384910065,1757625070297,-12000.0,0.00027397,7]
[384910066,1757625070306,-12000.0,0.00027397,7]
[384910067,1757625070315,-400.0,0.00027397,7]
[384910068,1757625070324,-1505.45,0.00027397,7]
[384910069,1757625070334,-12000.0,0.00027397,7]
[384910070,1757625070343,-2066.81,0.00027397,7]
[384910071,1757625070352,-12000.0,0.00027397,7]
[384910072,1757625070361,-3210.03,0.00027397,7]
[384910073,1757625070370,-12000.0,0.00027397,7]
[384910074,1757625070387,-151.0,0.00027397,7]
[384910075,1757625070397,-400.0,0.00027397,7]
[384910076,1757625070406,-12000.0,0.00027397,7]
[384910077,1757625070415,-151.0,0.00027397,7]
[384910078,1757625070423,-2844.3,0.00027397,7]
[384910079,1757625070432,-12000.0,0.00027397,7]
[384910080,1757625070442,-151.0,0.00027397,7]
[384910081,1757625070451,-12000.0,0.00027397,7]
[384910082,1757625070460,-151.0,0.00027397,7]
[384910083,1757625070469,-1065.94,0.00027397,7]
[384910084,1757625070478,-816.24,0.00027397,7]
[384910085,1757625070488,-12000.0,0.00027397,7]
[384910086,1757625070497,-151.0,0.00027397,7]
[384910087,1757625070506,-400.0,0.00027397,7]
[384910088,1757625070516,-12000.0,0.00027397,7]
[384910089,1757625070526,-151.0,0.00027397,7]
[384910090,1757625070537,-400.0,0.00027397,7]
[384910091,1757625070546,-1125.35,0.00027397,7]
[384910092,1757625070556,-153.715518,0.00027397,7]
[384910093,1757625070568,-12000.0,0.00027397,7]
[384910094,1757625070577,-151.0,0.00027397,7]
[384910095,1757625070586,-12000.0,0.00027397,7]
[384910096,1757625070596,-151.0,0.00027397,7]
[384910097,1757625070605,-400.0,0.00027397,7]
[384910098,1757625070614,-151.0,0.00027397,7]
[384910099,1757625070623,-3840.150777,0.00027397,7]
[384910100,1757625070632,-151.0,0.00027397,7]
[384910101,1757625070643,-161.57098,0.00027397,7]
[384910102,1757625070653,-499.676175,0.00027397,7]
[384910103,1757625070662,-2317.72,0.00027397,7]
[384910104,1757625070671,-6902.61,0.00027397,7]
[384910105,1757625070680,-499.676175,0.00027397,7]
[384910106,1757625070689,-499.676175,0.00027397,7]
[384910107,1757625070698,-409.73376597,0.00027397,7]
[384910108,1757625070707,-451.05,0.00027397,7]
[384910109,1757625070717,-499.676175,0.00027397,7]
[384910110,1757625070726,-3265.74,0.00027397,7]
[384910111,1757625070735,-499.676175,0.00027397,7]
[384910112,1757625070744,-499.676175,0.00027397,7]
[384910113,1757625070753,-400.0,0.00027397,7]
[384910114,1757625070762,-499.676175,0.00027397,7]
[384910115,1757625070771,-499.676175,0.00027397,7]
[384910116,1757625070780,-499.676175,0.00027397,7]
[384910117,1757625070789,-400.0,0.00027397,7]
[384910118,1757625070799,-499.676175,0.00027397,7]
[384910119,1757625070807,-499.676175,0.00027397,7]
[384910120,1757625070816,-1274.26,0.00027397,7]
[384910121,1757625070826,-499.676175,0.00027397,7]
[384910122,1757625070835,-1971.38,0.00027397,7]
[384910123,1757625070844,-1880.18,0.00027397,7]
[384910124,1757625070853,-499.676175,0.00027397,7]
[384910125,1757625070862,-1888.43,0.00027397,7]
[384910126,1757625070871,-499.676175,0.00027397,7]
[384910127,1757625070880,-499.676175,0.00027397,7]
[384910128,1757625070888,-499.676175,0.00027397,7]
[384910129,1757625070898,-499.676175,0.00027397,7]
[384910130,1757625070907,-400.0,0.00027397,7]
[384910131,1757625070916,-499.676175,0.00027397,7]
[384910132,1757625070926,-2677.24,0.00027397,7]
[384910133,1757625070936,-400.0,0.00027397,7]
[384910134,1757625070945,-499.676175,0.00027397,7]
[384910135,1757625070954,-499.676171,0.00027397,7]
[384910136,1757625070964,-167.944519,0.00027397,7]
[384910137,1757625070974,-2010.5,0.00027397,7]
[384910138,1757625070984,-2791.42,0.00027397,7]
[384910139,1757625070993,-400.0,0.00027397,7]
[384910140,1757625071002,-167.944519,0.00027397,7]
[384910141,1757625071011,-2288.24,0.00027397,7]
[384910142,1757625071020,-400.0,0.00027397,7]
[384910143,1757625071029,-400.0,0.00027397,7]
[384910144,1757625071038,-167.944519,0.00027397,7]
[384910146,1757625071048,-167.944519,0.00027397,7]
[384910147,1757625071057,-1768.94,0.00027397,7]
[384910148,1757625071067,-167.944519,0.00027397,7]
[384910149,1757625071077,-533.2,0.00027397,7]
[384910150,1757625071086,-400.0,0.00027397,7]
[384910151,1757625071095,-167.944519,0.00027397,7]
[384910152,1757625071104,-3762.81,0.00027397,7]
[384910153,1757625071113,-167.944519,0.00027397,7]
[384910154,1757625071125,-400.0,0.00027397,7]
[384910155,1757625071135,-167.944519,0.00027397,7]
[384910156,1757625071146,-5719.48,0.00027397,7]
[384910157,1757625071155,-551.14,0.00027397,7]
[384910158,1757625071165,-167.944519,0.00027397,7]
[384910159,1757625071175,-167.944519,0.00027397,7]
[384910160,1757625071184,-167.944519,0.00027397,7]
[384910161,1757625071194,-167.944519,0.00027397,7]
[384910162,1757625071205,-2489.25,0.00027397,7]
[384910163,1757625071214,-167.944519,0.00027397,7]
[384910164,1757625071223,-167.944519,0.00027397,7]
[384910165,1757625071232,-167.944519,0.00027397,7]
[384910166,1757625071241,-167.944519,0.00027397,7]
[384910167,1757625071251,-167.944519,0.00027397,7]
[384910168,1757625071260,-167.944519,0.00027397,7]
[384910169,1757625071269,-996.13,0.00027397,7]
[384910170,1757625071278,-400.0,0.00027397,7]
[384910171,1757625071287,-400.0,0.00027397,7]
[384910172,1757625071297,-167.944519,0.00027397,7]
[384910173,1757625071307,-167.944516,0.00027397,7]
[384910174,1757625071317,-400.0,0.00027397,7]
[384910175,1757625071326,-2050.88,0.00027397,7]
[384910176,1757625071335,-1979.92,0.00027397,7]
[384910177,1757625071349,-400.0,0.00027397,7]
[384910178,1757625071358,-2444.75,0.00027397,7]
[384910179,1757625071368,-400.0,0.00027397,7]
[384910180,1757625071378,-400.0,0.00027397,7]
[384910181,1757625071388,-2433.64,0.00027397,7]
[384910182,1757625071401,-400.0,0.00027397,7]
[384910183,1757625071412,-699.87,0.00027397,7]
[384910184,1757625071423,-400.0,0.00027397,7]
[384910185,1757625071432,-400.0,0.00027397,7]
[384910186,1757625071442,-151.0,0.00027397,7]
[384910187,1757625071452,-151.0,0.00027397,7]
[384910188,1757625071462,-153.145932,0.00027397,7]
[384910189,1757625071471,-3437.32,0.00027397,7]
[384910190,1757625071481,-151.0,0.00027397,7]
[384910191,1757625071491,-153.145932,0.00027397,7]
[384910192,1757625071500,-400.0,0.00027397,7]
[384910193,1757625071510,-1368.5,0.00027397,7]
[384910194,1757625071519,-151.0,0.00027397,7]
[384910195,1757625071529,-153.145932,0.00027397,7]
[384910196,1757625071538,-151.0,0.00027397,7]
[384910197,1757625071548,-153.145932,0.00027397,7]
[384910198,1757625071558,-1826.95,0.00027397,7]
[384910199,1757625071568,-152.536632,0.00027397,7]
[384910200,1757625071577,-153.145932,0.00027397,7]
[384910201,1757625071587,-153.145932,0.00027397,7]
[384910202,1757625071596,-153.145932,0.00027397,7]
[384910203,1757625071605,-153.145932,0.00027397,7]
[384910204,1757625071614,-153.145932,0.00027397,7]
[384910205,1757625071624,-3283.24,0.00027397,7]
[384910206,1757625071633,-1666.85,0.00027397,7]
[384910207,1757625071643,-400.0,0.00027397,7]
[384910208,1757625071652,-485.97438,0.00027397,7]
[384910209,1757625071661,-153.145932,0.00027397,7]
[384910210,1757625071670,-485.97438,0.00027397,7]
[384910211,1757625071679,-153.145932,0.00027397,7]
[384910212,1757625071688,-485.97438,0.00027397,7]
[384910213,1757625071697,-153.145932,0.00027397,7]
[384910214,1757625071706,-1468.36,0.00027397,7]
[384910215,1757625071715,-2520.87,0.00027397,7]
[384910216,1757625071725,-153.145932,0.00027397,7]
[384910217,1757625071734,-485.97438,0.00027397,7]
[384910218,1757625071743,-400.0,0.00027397,7]
[384910219,1757625071752,-153.145932,0.00027397,7]
[384910220,1757625071761,-485.97438,0.00027397,7]
[384910221,1757625071771,-1605.52,0.00027397,7]
[384910222,1757625071780,-153.145932,0.00027397,7]
[384910223,1757625071789,-485.97438,0.00027397,7]
[384910224,1757625071799,-153.145932,0.00027397,7]
[384910225,1757625071808,-485.97438,0.00027397,7]
[384910226,1757625071817,-485.97438,0.00027397,7]
[384910227,1757625071826,-153.145932,0.00027397,7]
[384910228,1757625071835,-153.145932,0.00027397,7]
[384910229,1757625071844,-485.97438,0.00027397,7]
[384910230,1757625071854,-485.97438,0.00027397,7]
[384910231,1757625071863,-153.145932,0.00027397,7]
[384910232,1757625071873,-485.97438,0.00027397,7]
[384910233,1757625071882,-153.145933,0.00027397,7]
[384910234,1757625071891,-400.0,0.00027397,7]
[384910235,1757625071901,-400.0,0.00027397,7]
[384910236,1757625071911,-485.97438,0.00027397,7]
[384910237,1757625071920,-523.8,0.00027397,7]
[384910238,1757625071929,-485.97438,0.00027397,7]
[384910239,1757625071939,-400.0,0.00027397,7]
[384910240,1757625071948,-485.97438,0.00027397,7]
[384910241,1757625071957,-2239.16,0.00027397,7]
[384910242,1757625071967,-485.97438,0.00027397,7]
[384910243,1757625071976,-1921.86,0.00027397,7]
[384910244,1757625071985,-400.0,0.00027397,7]
[384910245,1757625071995,-485.97438,0.00027397,7]
[384910246,1757625072004,-400.0,0.00027397,7]
[384910247,1757625072013,-2345.98,0.00027397,7]
[384910248,1757625072022,-485.97438,0.00027397,7]
[384910249,1757625072032,-485.97438,0.00027397,7]
[384910250,1757625072041,-151.0,0.00027397,7]
[384910251,1757625072051,-485.97438,0.00027397,7]
[384910252,1757625072060,-485.974374,0.00027397,7]
[384910253,1757625072070,-151.0,0.00027397,7]
[384910254,1757625072079,-200.0,0.00027397,7]
[384910255,1757625072089,-2254.66,0.00027397,7]
[384910256,1757625072098,-151.0,0.00027397,7]
[384910257,1757625072107,-811.41,0.00027397,7]
[384910258,1757625072116,-151.0,0.00027397,7]
[384910259,1757625072134,-4078.65,0.00027397,7]
[384910260,1757625072144,-151.0,0.00027397,7]
[384910261,1757625072153,-400.0,0.00027397,7]
[384910262,1757625072162,-151.0,0.00027397,7]
[384910263,1757625072172,-151.0,0.00027397,7]
[384910264,1757625072181,-400.0,0.00027397,7]
[384910265,1757625072191,-151.0,0.00027397,7]
[384910266,1757625072200,-151.0,0.00027397,7]
[384910267,1757625072210,-151.0,0.00027397,7]
[384910268,1757625072219,-2328.61,0.00027397,7]
[384910269,1757625072228,-151.0,0.00027397,7]
[384910270,1757625072238,-1491.53,0.00027397,7]
[384910271,1757625072247,-151.0,0.00027397,7]
[384910272,1757625072257,-400.0,0.00027397,7]
[384910273,1757625072266,-151.0,0.00027397,7]
[384910274,1757625072275,-151.0,0.00027397,7]
[384910275,1757625072284,-151.0,0.00027397,7]
[384910276,1757625072294,-151.0,0.00027397,7]
[384910277,1757625072303,-3196.48,0.00027397,7]
[384910278,1757625072312,-151.0,0.00027397,7]
[384910279,1757625072321,-3016.69,0.00027397,7]
[384910280,1757625072331,-151.0,0.00027397,7]
[384910281,1757625072340,-151.0,0.00027397,7]
[384910282,1757625072349,-151.0,0.00027397,7]
[384910283,1757625072359,-240.598448,0.00027397,7]
[384910284,1757625072368,-151.0,0.00027397,7]
[384910285,1757625072378,-323.70324435,0.00027397,7]
[384910286,1757625072387,-1844.67,0.00027397,7]
[384910287,1757625072397,-151.0,0.00027397,7]
[384910288,1757625072408,-151.0,0.00027397,7]
[384910289,1757625072417,-262.0098,0.00027397,7]
[384910290,1757625072426,-151.0,0.00027397,7]
[384910291,1757625072435,-3168.69,0.00027397,7]
[384910292,1757625072444,-151.0,0.00027397,7]
[384910293,1757625072453,-400.0,0.00027397,7]
[384910294,1757625072462,-151.0,0.00027397,7]
[384910295,1757625072471,-151.0,0.00027397,7]
[384910296,1757625072480,-151.0,0.00027397,7]
[384910297,1757625072489,-151.0,0.00027397,7]
[384910298,1757625072499,-151.0,0.00027397,7]
[384910299,1757625072508,-151.0,0.00027397,7]
[384910300,1757625072517,-151.0,0.00027397,7]
[384910301,1757625072526,-151.0,0.00027397,7]
[384910302,1757625072535,-151.0,0.00027397,7]
[384910303,1757625072544,-8258.14,0.00027397,7]
[384910304,1757625072553,-400.0,0.00027397,7]
[384910305,1757625072562,-151.0,0.00027397,7]
[384910306,1757625072571,-151.0,0.00027397,7]
[384910307,1757625072580,-151.0,0.00027397,7]
[384910308,1757625072590,-151.0,0.00027397,7]
[384910309,1757625072599,-151.0,0.00027397,7]
[384910310,1757625072608,-151.0,0.00027397,7]
[384910311,1757625072617,-151.0,0.00027397,7]
[384910312,1757625072626,-151.0,0.00027397,7]
[384910313,1757625072635,-151.0,0.00027397,7]
[384910314,1757625072644,-151.0,0.00027397,7]
[384910315,1757625072654,-151.0,0.00027397,7]
[384910316,1757625072663,-3175.05,0.00027397,7]
[384910317,1757625072673,-151.0,0.00027397,7]
[384910318,1757625072682,-151.840616,0.00027397,7]
[384910319,1757625072694,-151.0,0.00027397,7]
[384910320,1757625072706,-151.0,0.00027397,7]
[384910321,1757625072715,-151.0,0.00027397,7]
[384910322,1757625072725,-236.037191,0.00027397,7]
[384910323,1757625072736,-151.0,0.00027397,7]
[384910324,1757625072745,-295.779437,0.00027397,7]
[384910325,1757625072755,-6.16668594,0.00027397,7]
[384910327,1757625074027,-144.83331406,0.00027397,7]
[384910328,1757625074037,-182.29787507,0.00027397,7]
[384910329,1757625074634,-20.27863758,0.00027397,7]
[384910330,1757625074666,-1089.50348735,0.00027397,7]
[384910331,1757625074676,-151.0,0.00027397,7]
[384910332,1757625074686,-151.0,0.00027397,7]
[384910333,1757625074696,-151.0,0.00027397,7]
[384910334,1757625074706,-271.8,0.00027397,7]
[384910335,1757625074715,-627.7,0.00027397,7]
[384910336,1757625074724,-1494.55,0.00027397,7]
[384910337,1757625074733,-151.0,0.00027397,7]
[384910338,1757625074744,-1494.55,0.00027397,7]
[384910339,1757625074753,-636.36,0.00027397,7]
[384910340,1757625074763,-1942.25,0.00027397,7]
[384910341,1757625074772,-1494.55,0.00027397,7]
[384910342,1757625074780,-1494.55,0.00027397,7]
[384910343,1757625074789,-1494.55,0.00027397,7]
[384910344,1757625074799,-1494.55,0.00027397,7]
[384910345,1757625074808,-3571.35,0.00027397,7]
[384910346,1757625074817,-1494.55,0.00027397,7]
[384910347,1757625074827,-2309.43,0.00027397,7]
[384910348,1757625074836,-1453.44,0.00027397,7]
[384910349,1757625074845,-151.0,0.00027397,7]
[384910350,1757625074855,-400.0,0.00027397,7]
[384910351,1757625074864,-515.83044659,0.00027397,7]
[384910352,1757625074873,-151.0,0.00027397,7]
[384910353,1757625074882,-400.0,0.00027397,7]
[384910354,1757625074892,-1903.78,0.00027397,7]
[384910355,1757625074901,-151.0,0.00027397,7]
[384910356,1757625074910,-1909.17,0.00027397,7]
[384910357,1757625074919,-151.0,0.00027397,7]
[384910358,1757625074929,-151.0,0.00027397,7]
[384910359,1757625074938,-151.0,0.00027397,7]
[384910360,1757625074947,-151.0,0.00027397,7]
[384910361,1757625074957,-151.0,0.00027397,7]
[384910362,1757625074966,-400.0,0.00027397,7]
[384910363,1757625074975,-151.0,0.00027397,7]
[384910364,1757625074984,-151.0,0.00027397,7]
[384910365,1757625074995,-151.0,0.00027397,7]
[384910366,1757625075005,-151.0,0.00027397,7]
[384910367,1757625075014,-151.0,0.00027397,7]
[384910368,1757625075023,-151.0,0.00027397,7]
[384910369,1757625075032,-151.0,0.00027397,7]
[384910370,1757625075041,-1309.44,0.00027397,7]
[384910371,1757625075051,-151.0,0.00027397,7]
[384910372,1757625075060,-157.544728,0.00027397,7]
[384910373,1757625075069,-400.0,0.00027397,7]
[384910374,1757625075078,-151.0,0.00027397,7]
[384910375,1757625075087,-400.0,0.00027397,7]
[384910376,1757625075097,-151.0,0.00027397,7]
[384910377,1757625075193,-2692.65,0.00027397,7]
[384910378,1757625075203,-400.0,0.00027397,7]
[384910379,1757625075214,-151.772856,0.00027397,7]
[384910380,1757625075223,-7366.84,0.00027397,7]
[384910381,1757625075232,-409.46798264,0.00027397,7]
[384910382,1757625075242,-657.82049942,0.00027397,7]
[384910383,1757625075255,-1649.65950058,0.00027397,7]
[384910384,1757625075265,-1360.61,0.00027397,7]
[384910385,1757625075273,-151.0,0.00027397,7]
[384910386,1757625075282,-151.0,0.00027397,7]
[384910387,1757625075292,-151.0,0.00027397,7]
[384910388,1757625075301,-151.0,0.00027397,7]
[384910389,1757625075310,-151.0,0.00027397,7]
[384910390,1757625075319,-151.0,0.00027397,7]
[384910391,1757625075328,-400.0,0.00027397,7]
[384910392,1757625075337,-151.0,0.00027397,7]
[384910393,1757625075346,-400.0,0.00027397,7]
[384910394,1757625075355,-151.0,0.00027397,7]
[384910395,1757625075365,-151.0,0.00027397,7]
[384910396,1757625075374,-2297.15,0.00027397,7]
[384910397,1757625075383,-151.0,0.00027397,7]
[384910398,1757625075392,-151.0,0.00027397,7]
[384910399,1757625075401,-151.0,0.00027397,7]
[384910400,1757625075410,-151.0,0.00027397,7]
[384910401,1757625075419,-400.0,0.00027397,7]
[384910402,1757625075428,-430.05,0.00027397,7]
[384910403,1757625075436,-1944.3,0.00027397,7]
[384910404,1757625075445,-151.0,0.00027397,7]
[384910405,1757625075454,-282.516865,0.00027397,7]
[384910406,1757625075464,-151.0,0.00027397,7]
[384910407,1757625075472,-400.0,0.00027397,7]
[384910408,1757625075482,-400.0,0.00027397,7]
[384910409,1757625075491,-3102.87,0.00027397,7]
[384910410,1757625075500,-539.28,0.00027397,7]
[384910411,1757625075509,-400.0,0.00027397,7]
[384910412,1757625075518,-152.433103,0.00027397,7]
[384910413,1757625075528,-151.0,0.00027397,7]
[384910414,1757625075537,-151.0,0.00027397,7]
[384910415,1757625075545,-400.0,0.00027397,7]
[384910416,1757625075554,-151.0,0.00027397,7]
[384910417,1757625075563,-151.0,0.00027397,7]
[384910418,1757625075572,-151.0,0.00027397,7]
[384910419,1757625075581,-408.8445975,0.00027397,7]
[384910420,1757625075590,-151.0,0.00027397,7]
[384910421,1757625075599,-151.0,0.00027397,7]
[384910422,1757625075608,-151.0,0.00027397,7]
[384910423,1757625075617,-151.0,0.00027397,7]
[384910424,1757625075626,-151.0,0.00027397,7]
[384910425,1757625075635,-151.0,0.00027397,7]
[384910426,1757625075644,-151.0,0.00027397,7]
[384910427,1757625075653,-151.0,0.00027397,7]
[384910428,1757625075662,-400.0,0.00027397,7]
[384910429,1757625075671,-151.0,0.00027397,7]
[384910430,1757625075681,-151.0,0.00027397,7]
[384910431,1757625075690,-151.0,0.00027397,7]
[384910432,1757625075700,-151.0,0.00027397,7]
[384910433,1757625075711,-2350.24,0.00027397,7]
[384910434,1757625075719,-151.0,0.00027397,7]
[384910435,1757625075728,-151.0,0.00027397,7]
[384910436,1757625075737,-151.0,0.00027397,7]
[384910437,1757625075747,-400.0,0.00027397,7]
[384910438,1757625075756,-400.0,0.00027397,7]
[384910439,1757625075765,-151.0,0.00027397,7]
[384910440,1757625075775,-173.265698,0.00027397,7]
[384910441,1757625075785,-151.0,0.00027397,7]
[384910442,1757625075795,-151.0,0.00027397,7]
[384910443,1757625075804,-400.0,0.00027397,7]
[384910444,1757625075815,-12775.11,0.00027397,7]
[384910445,1757625075824,-151.0,0.00027397,7]
[384910446,1757625075834,-151.0,0.00027397,7]
[384910447,1757625075843,-293.4461831,0.00027397,7]
[384910448,1757625075853,-151.0,0.00027397,7]
[384910449,1757625075863,-400.0,0.00027397,7]
[384910450,1757625075872,-204.778849,0.00027397,7]
[384910451,1757625075882,-579.45,0.00027397,7]
[384910452,1757625075891,-4890.73,0.00027397,7]
[384910453,1757625075901,-2636.21,0.00027397,7]
[384910454,1757625075910,-400.0,0.00027397,7]
[384910455,1757625075919,-400.0,0.00027397,7]
[384910456,1757625075928,-400.0,0.00027397,7]
[384910457,1757625075938,-5484.76,0.00027397,7]
[384910458,1757625075948,-1164.77,0.00027397,7]
[384910459,1757625075958,-400.0,0.00027397,7]
[384910460,1757625075967,-2482.28,0.00027397,7]
[384910461,1757625075976,-400.0,0.00027397,7]
[384910462,1757625075986,-484.472926,0.00027397,7]
[384910463,1757625075996,-484.472926,0.00027397,7]
[384910464,1757625076006,-2057.84,0.00027397,7]
[384910465,1757625076016,-484.472926,0.00027397,7]
[384910466,1757625076026,-484.472926,0.00027397,7]
[384910467,1757625076035,-484.472926,0.00027397,7]
[384910468,1757625076045,-484.472926,0.00027397,7]
[384910469,1757625076054,-484.472926,0.00027397,7]
[384910470,1757625076063,-484.472926,0.00027397,7]
[384910471,1757625076073,-1003.74,0.00027397,7]
[384910472,1757625076083,-400.0,0.00027397,7]
[384910473,1757625076092,-484.472926,0.00027397,7]
[384910474,1757625076101,-400.0,0.00027397,7]
[384910475,1757625076111,-484.472926,0.00027397,7]
[384910476,1757625076120,-2104.56,0.00027397,7]
[384910477,1757625076129,-2336.72,0.00027397,7]
[384910478,1757625076142,-1235.16,0.00027397,7]
[384910479,1757625076151,-484.472926,0.00027397,7]
[384910480,1757625076161,-400.0,0.00027397,7]
[384910481,1757625076170,-484.472926,0.00027397,7]
[384910482,1757625076181,-400.0,0.00027397,7]
[384910483,1757625076191,-191.90032056,0.00027397,7]
[384910484,1757625077568,-292.57260544,0.00027397,7]
[384910485,1757625077578,-156.95342892,0.00027397,7]
[384910486,1757625077590,-327.51949708,0.00027397,7]
[384910487,1757625077601,-484.472926,0.00027397,7]
[384910488,1757625077610,-400.0,0.00027397,7]
[384910489,1757625077620,-45.98771667,0.00027397,7]
[384910490,1757625077651,-438.48520933,0.00027397,7]
[384910491,1757625077660,-484.472926,0.00027397,7]
[384910492,1757625077669,-484.472926,0.00027397,7]
[384910493,1757625077679,-151.0,0.00027397,7]
[384910494,1757625077688,-400.0,0.00027397,7]
[384910495,1757625077698,-484.472926,0.00027397,7]
[384910496,1757625077708,-151.0,0.00027397,7]
[384910497,1757625077718,-484.472926,0.00027397,7]
[384910498,1757625077727,-1218.07614667,0.00027397,7]
[384910499,1757625077739,-443.33385333,0.00027397,7]
[384910500,1757625077748,-286.34714667,0.00027397,7]
[384910501,1757625077763,-436.40285333,0.00027397,7]
[384910502,1757625077772,-517.56,0.00027397,7]
[384910503,1757625077782,-2416.04,0.00027397,7]
[384910504,1757625077791,-400.0,0.00027397,7]
[384910505,1757625077800,-400.0,0.00027397,7]
[384910506,1757625077809,-400.0,0.00027397,7]
[384910507,1757625077819,-365.54217185,0.00027397,7]
[384910508,1757625077830,-34.45782815,0.00027397,7]
[384910509,1757625077839,-621.18,0.00027397,7]
[384910510,1757625077849,-247.30039927,0.00027397,7]
[384910511,1757625077861,-152.69960073,0.00027397,7]
[384910512,1757625077870,-629.76,0.00027397,7]
[384910513,1757625077879,-18.90839178,0.00027397,7]
[384910514,1757625077899,-381.09160822,0.00027397,7]
[384910515,1757625077909,-1627.55,0.00027397,7]
[384910516,1757625077919,-400.0,0.00027397,7]
[384910517,1757625077928,-2212.18,0.00027397,7]
[384910518,1757625077937,-238.20625612,0.00027397,7]
[384910519,1757625078842,-11777.86374388,0.00027397,7]
[384910520,1757625078851,-400.0,0.00027397,7]
[384910521,1757625078861,-2383.73,0.00027397,7]
[384910522,1757625078871,-3525.42,0.00027397,7]
[384910523,1757625078881,-400.0,0.00027397,7]
[384910524,1757625078891,-400.0,0.00027397,7]
[384910525,1757625078900,-1794.73,0.00027397,7]
[384910526,1757625078910,-400.0,0.00027397,7]
[384910527,1757625078919,-1727.41,0.00027397,7]
[384910528,1757625078929,-151.0,0.00027397,7]
[384910529,1757625078939,-400.0,0.00027397,7]
[384910530,1757625078949,-400.0,0.00027397,7]
[384910531,1757625078959,-151.0,0.00027397,7]
[384910532,1757625078969,-151.0,0.00027397,7]
[384910533,1757625078979,-1981.41,0.00027397,7]